{"text_format":"3","workbook":"xlsx","n_sheets":1,"sheets":["Pressão Sanguínea e Glicose"],"not_rendered":{"defined_names":9},"read":"whole","date_system":"1900"}

{"sheet":"Pressão Sanguínea e Glicose","index":0,"n_rows":13,"n_cols":11,"rows_kept":13,"merged":[[0,1,4,3],[0,4,0,9],[1,4,1,6],[1,7,1,9]]}
[null,"Controlador de Pressão Sanguínea e Glicose",null,null,"Personalize os valores de escala nas células E2 a J5, abaixo."]
[{"$nulls":4},"PRESSÃO ARTERIAL",null,null,"ESCALA DE GLICOSE"]
[{"$nulls":4},120,"SISTÓLICA",140,70,100,150]
[{"$nulls":4},80,"DIASTÓLICA",90,"BAIXA","NORMAL","ALTO"]
[{"$nulls":4},"PRESSÃO ALVO",null,"CHAME O MÉDICO"]
[null,"Data","Hora","Evento","Sistólica","Diastólica","Frequência Cardíaca","Glicose","Nível","Status","Anotações"]
[null,{"$f":"TODAY()","v":"2022-08-03"},"06:00:00","Ao acordar",129,79,72,55,{"$f":"PressãoSanguíneaEGlicose[[#This Row],[Glicose]]","v":55},{"$f":"IFERROR(IF(PressãoSanguíneaEGlicose[[#This Row],[Nível]]=0,\"\",IF(PressãoSanguíneaEGlicose[[#This Row],[Nível]]<=GBaixo,\"Baixa\",IF(AND(PressãoSanguíneaEGlicose[[#This Row],[Nível]]>GBaixo,PressãoSanguíneaEGlicose[[#This Row],[Nível]]<GAlto),\"Normal\",\"Alto\"))), \"\")","v":"Baixa"}]
[null,{"$f":"TODAY()","v":"2022-08-03"},"07:00:00","Antes da refeição",120,80,74,70,{"$f":"PressãoSanguíneaEGlicose[[#This Row],[Glicose]]","v":70},{"$f":"IFERROR(IF(PressãoSanguíneaEGlicose[[#This Row],[Nível]]=0,\"\",IF(PressãoSanguíneaEGlicose[[#This Row],[Nível]]<=GBaixo,\"Baixa\",IF(AND(PressãoSanguíneaEGlicose[[#This Row],[Nível]]>GBaixo,PressãoSanguíneaEGlicose[[#This Row],[Nível]]<GAlto),\"Normal\",\"Alto\"))), \"\")","v":"Baixa"}]
[null,"2022-08-03","09:00:00","Após a refeição",133,80,75,75,{"$f":"PressãoSanguíneaEGlicose[[#This Row],[Glicose]]","v":75},{"$f":"IFERROR(IF(PressãoSanguíneaEGlicose[[#This Row],[Nível]]=0,\"\",IF(PressãoSanguíneaEGlicose[[#This Row],[Nível]]<=GBaixo,\"Baixa\",IF(AND(PressãoSanguíneaEGlicose[[#This Row],[Nível]]>GBaixo,PressãoSanguíneaEGlicose[[#This Row],[Nível]]<GAlto),\"Normal\",\"Alto\"))), \"\")","v":"Normal"}]
[null,"2022-08-03","10:00:00","Somente PA",143,91,75,190,{"$f":"PressãoSanguíneaEGlicose[[#This Row],[Glicose]]","v":190},{"$f":"IFERROR(IF(PressãoSanguíneaEGlicose[[#This Row],[Nível]]=0,\"\",IF(PressãoSanguíneaEGlicose[[#This Row],[Nível]]<=GBaixo,\"Baixa\",IF(AND(PressãoSanguíneaEGlicose[[#This Row],[Nível]]>GBaixo,PressãoSanguíneaEGlicose[[#This Row],[Nível]]<GAlto),\"Normal\",\"Alto\"))), \"\")","v":"Alto"}]
[null,"2022-08-03","12:00:00","Antes da refeição",141,84,70,140,{"$f":"PressãoSanguíneaEGlicose[[#This Row],[Glicose]]","v":140},{"$f":"IFERROR(IF(PressãoSanguíneaEGlicose[[#This Row],[Nível]]=0,\"\",IF(PressãoSanguíneaEGlicose[[#This Row],[Nível]]<=GBaixo,\"Baixa\",IF(AND(PressãoSanguíneaEGlicose[[#This Row],[Nível]]>GBaixo,PressãoSanguíneaEGlicose[[#This Row],[Nível]]<GAlto),\"Normal\",\"Alto\"))), \"\")","v":"Normal"}]
[null,{"$f":"TODAY()","v":"2022-08-03"},"15:00:00","Após a refeição",132,80,68,90,{"$f":"PressãoSanguíneaEGlicose[[#This Row],[Glicose]]","v":90},{"$f":"IFERROR(IF(PressãoSanguíneaEGlicose[[#This Row],[Nível]]=0,\"\",IF(PressãoSanguíneaEGlicose[[#This Row],[Nível]]<=GBaixo,\"Baixa\",IF(AND(PressãoSanguíneaEGlicose[[#This Row],[Nível]]>GBaixo,PressãoSanguíneaEGlicose[[#This Row],[Nível]]<GAlto),\"Normal\",\"Alto\"))), \"\")","v":"Normal"},"Tomou medicação para pressão durante a refeição"]
[null,"Médias",null,null,{"$f":"SUBTOTAL(101,PressãoSanguíneaEGlicose[Sistólica])","v":133},{"$f":"SUBTOTAL(101,PressãoSanguíneaEGlicose[Diastólica])","v":{"v":82.33333333333333,"d":"82"}},{"$f":"SUBTOTAL(101,PressãoSanguíneaEGlicose[Frequência Cardíaca])","v":{"v":72.33333333333333,"d":"72"}},{"$f":"SUBTOTAL(101,PressãoSanguíneaEGlicose[Glicose])","v":{"v":103.33333333333333,"d":"103"}}]